fUST/lending_fUST_20260204
["ID","MTS","AMOUNT","RATE_DAILY","PERIOD"]
[404480623,1770192523372,151.0,0.00039895,120]
[404480624,1770192523667,211.819707,0.00039895,120]
[404480628,1770192552153,-300.0,0.00026846,2]
[404480629,1770192552181,-1734.43955054,0.00026847,2]
[404480630,1770192557095,-1006.50017279,0.00026847,2]
[404480631,1770192561080,-5303.37355572,0.00026847,2]
[404480632,1770192562117,-2080.10387876,0.00026847,2]
[404480633,1770192562138,-561.25,0.00027362,3]
[404480634,1770192562158,-661.82,0.00027362,10]
[404480635,1770192562180,-187.07,0.00027363,3]
[404480636,1770192562199,-195.55054953,0.00027372,2]
[404480637,1770192562219,-484.84861749,0.00027372,2]
[404480638,1770192562243,-500.0,0.00027372,2]
[404480639,1770192562264,-500.0,0.00027372,2]
[404480640,1770192562284,-500.0,0.00027372,2]
[404480641,1770192562306,-500.0,0.00027372,2]
[404480642,1770192562328,-500.0,0.00027372,2]
[404480643,1770192562350,-500.0,0.00027372,2]
[404480644,1770192562370,-500.0,0.00027372,2]
[404480645,1770192562391,-500.0,0.00027372,2]
[404480646,1770192562412,-445.1669361,0.00027372,2]
[404480647,1770192562434,-500.0,0.00027372,2]
[404480648,1770192562456,-1125.8513016,0.00027372,2]
[404480649,1770192562494,-500.0,0.00027372,2]
[404480650,1770192562535,-1125.8513016,0.00027372,2]
[404480651,1770192562578,-500.0,0.00027372,2]
[404480652,1770192562622,-500.0,0.00027372,2]
[404480653,1770192562656,-500.0,0.00027372,2]
[404480654,1770192562684,-500.0,0.00027372,2]
[404480655,1770192562708,-500.0,0.00027372,2]
[404480656,1770192562733,-1125.8513016,0.00027372,2]
[404480657,1770192562758,-500.0,0.00027372,2]
[404480658,1770192562782,-600.04443836,0.00027372,2]
[404480659,1770192562810,-500.0,0.00027372,2]
[404480660,1770192562831,-500.0,0.00027372,2]
[404480661,1770192562854,-500.0,0.00027372,2]
[404480662,1770192562877,-1125.8513016,0.00027372,2]
[404480663,1770192562900,-500.0,0.00027372,2]
[404480664,1770192562925,-500.0,0.00027372,2]
[404480665,1770192562946,-1125.8513016,0.00027372,2]
[404480666,1770192562968,-500.0,0.00027372,2]
[404480667,1770192562991,-500.0,0.00027372,2]
[404480668,1770192563011,-1125.8513016,0.00027372,2]
[404480669,1770192563033,-500.0,0.00027372,2]
[404480670,1770192563054,-500.0,0.00027372,2]
[404480671,1770192563076,-500.0,0.00027372,2]
[404480672,1770192563097,-1125.8513016,0.00027372,2]
[404480673,1770192563118,-500.0,0.00027372,2]
[404480674,1770192563139,-500.0,0.00027372,2]
[404480675,1770192563161,-500.0,0.00027372,2]
[404480676,1770192563181,-1125.8513016,0.00027372,2]
[404480677,1770192563202,-500.0,0.00027372,2]
[404480678,1770192563224,-500.0,0.00027372,2]
[404480679,1770192563246,-500.0,0.00027372,2]
[404480680,1770192563265,-1125.8513016,0.00027372,2]
[404480681,1770192563286,-500.0,0.00027372,2]
[404480682,1770192563311,-500.0,0.00027372,2]
[404480683,1770192563333,-500.0,0.00027372,2]
[404480684,1770192563355,-500.0,0.00027372,2]
[404480685,1770192563376,-500.0,0.00027372,2]
[404480686,1770192563396,-1125.8513016,0.00027372,2]
[404480687,1770192563417,-500.0,0.00027372,2]
[404480688,1770192563438,-500.0,0.00027372,2]
[404480689,1770192563459,-1125.8513016,0.00027372,2]
[404480690,1770192563480,-500.0,0.00027372,2]
[404480691,1770192563504,-1125.8513016,0.00027372,2]
[404480692,1770192563526,-500.0,0.00027372,2]
[404480693,1770192563550,-500.0,0.00027372,2]
[404480694,1770192563571,-500.0,0.00027372,2]
[404480695,1770192563591,-611.70008729,0.00027372,2]
[404480696,1770192563612,-1125.8513016,0.00027372,2]
[404480697,1770192563633,-500.0,0.00027372,2]
[404480698,1770192563654,-500.0,0.00027372,2]
[404480699,1770192563676,-500.0,0.00027372,2]
[404480700,1770192563698,-500.0,0.00027372,2]
[404480701,1770192563719,-1125.8513016,0.00027372,2]
[404480702,1770192563739,-500.0,0.00027372,2]
[404480703,1770192563760,-1125.8513016,0.00027372,2]
[404480704,1770192563782,-500.0,0.00027372,2]
[404480705,1770192563802,-500.0,0.00027372,2]
[404480706,1770192563822,-1125.8513016,0.00027372,2]
[404480707,1770192563843,-500.0,0.00027372,2]
[404480708,1770192563863,-1125.8513016,0.00027372,2]
[404480709,1770192563885,-500.0,0.00027372,2]
[404480710,1770192563912,-500.0,0.00027372,2]
[404480711,1770192563935,-500.0,0.00027372,2]
[404480712,1770192563957,-1125.8513016,0.00027372,2]
[404480713,1770192563979,-500.0,0.00027372,2]
[404480714,1770192564004,-500.0,0.00027372,2]
[404480715,1770192564026,-1125.8513016,0.00027372,2]
[404480716,1770192564048,-1125.8513016,0.00027372,2]
[404480717,1770192564071,-500.0,0.00027372,2]
[404480718,1770192564093,-500.0,0.00027372,2]
[404480719,1770192564115,-1125.8513016,0.00027372,2]
[404480720,1770192564137,-500.0,0.00027372,2]
[404480721,1770192564159,-1125.8513016,0.00027372,2]
[404480722,1770192564182,-399.09481167,0.00027372,2]
[404480723,1770192564203,-1125.8513016,0.00027372,2]
[404480724,1770192564224,-500.0,0.00027372,2]
[404480725,1770192564244,-1125.8513016,0.00027372,2]
[404480726,1770192564263,-1125.8513016,0.00027372,2]
[404480727,1770192564283,-500.0,0.00027372,2]
[404480728,1770192564302,-1125.8513016,0.00027372,2]
[404480729,1770192564322,-1125.8513016,0.00027372,2]
[404480730,1770192564342,-1125.8513016,0.00027372,2]
[404480731,1770192564362,-1125.8513016,0.00027372,2]
[404480732,1770192564381,-1125.8513016,0.00027372,2]
[404480733,1770192564400,-1125.8513016,0.00027372,2]
[404480734,1770192564419,-1125.8513016,0.00027372,2]
[404480735,1770192564438,-1125.8513016,0.00027372,2]
[404480736,1770192564457,-1125.8513016,0.00027372,2]
[404480737,1770192564476,-1125.8513016,0.00027372,2]
[404480738,1770192564597,-1125.8513016,0.00027372,2]
[404480739,1770192564620,-1125.8513016,0.00027372,2]
[404480740,1770192564639,-1125.8513016,0.00027372,2]
[404480741,1770192564662,-1125.8513016,0.00027372,2]
[404480742,1770192564682,-1125.8513016,0.00027372,2]
[404480743,1770192564701,-1125.8513016,0.00027372,2]
[404480744,1770192564721,-1125.8513016,0.00027372,2]
[404480745,1770192564741,-1125.8513016,0.00027372,2]
[404480746,1770192564761,-1125.8513016,0.00027372,2]
[404480747,1770192564780,-1125.8513016,0.00027372,2]
[404480748,1770192564800,-1125.8513016,0.00027372,2]
[404480749,1770192564820,-1125.8513016,0.00027372,2]
[404480750,1770192564839,-1358.60383472,0.00027372,2]
[404480751,1770192564858,-1358.60383472,0.00027372,2]
[404480752,1770192564878,-1358.60383472,0.00027372,2]
[404480753,1770192564898,-1358.60383472,0.00027372,2]
[404480754,1770192564918,-1358.60383472,0.00027372,2]
[404480755,1770192564940,-500.0,0.00027372,2]
[404480756,1770192564959,-1358.60383472,0.00027372,2]
[404480757,1770192564979,-500.0,0.00027372,2]
[404480758,1770192565000,-1358.60383472,0.00027372,2]
[404480759,1770192565022,-500.0,0.00027372,2]
[404480760,1770192565042,-1358.60383472,0.00027372,2]
[404480761,1770192565063,-500.0,0.00027372,2]
[404480762,1770192565085,-500.0,0.00027372,2]
[404480763,1770192565105,-1358.60383472,0.00027372,2]
[404480764,1770192565128,-500.0,0.00027372,2]
[404480765,1770192565148,-1358.60383472,0.00027372,2]
[404480766,1770192565170,-500.0,0.00027372,2]
[404480767,1770192565192,-500.0,0.00027372,2]
[404480768,1770192565213,-1358.60383472,0.00027372,2]
[404480769,1770192565233,-500.0,0.00027372,2]
[404480770,1770192565253,-1358.60383472,0.00027372,2]
[404480771,1770192565274,-1358.60383472,0.00027372,2]
[404480772,1770192565293,-1358.60383472,0.00027372,2]
[404480773,1770192565313,-1358.60383472,0.00027372,2]
[404480774,1770192565334,-1358.60383472,0.00027372,2]
[404480775,1770192565354,-1358.60383472,0.00027372,2]
[404480776,1770192565376,-1358.60383472,0.00027372,2]
[404480777,1770192565395,-1358.60383472,0.00027372,2]
[404480778,1770192565416,-1358.60383472,0.00027372,2]
[404480779,1770192565437,-1358.60383472,0.00027372,2]
[404480780,1770192565456,-1358.60383472,0.00027372,2]
[404480781,1770192565480,-1358.60383472,0.00027372,2]
[404480782,1770192565503,-1358.60383472,0.00027372,2]
[404480783,1770192565522,-1358.60383472,0.00027372,2]
[404480784,1770192565543,-1358.60383472,0.00027372,2]
[404480785,1770192565563,-1358.60383472,0.00027372,2]
[404480786,1770192565588,-1358.60383472,0.00027372,2]
[404480787,1770192565608,-1358.60383472,0.00027372,2]
[404480788,1770192565628,-1358.60383472,0.00027372,2]
[404480789,1770192565647,-1358.60383472,0.00027372,2]
[404480790,1770192565668,-1358.60383472,0.00027372,2]
[404480791,1770192565687,-1358.60383472,0.00027372,2]
[404480792,1770192565707,-1358.60383472,0.00027372,2]
[404480793,1770192565727,-1383.30572262,0.00027372,2]
[404480794,1770192565747,-1383.30572262,0.00027372,2]
[404480795,1770192565767,-1383.30572262,0.00027372,2]
[404480796,1770192565786,-1383.30572262,0.00027372,2]
[404480797,1770192565806,-1383.30572262,0.00027372,2]
[404480798,1770192565825,-1383.30572262,0.00027372,2]
[404480799,1770192565846,-1383.30572262,0.00027372,2]
[404480800,1770192565866,-1383.30572262,0.00027372,2]
[404480801,1770192565886,-1383.30572262,0.00027372,2]
[404480802,1770192565906,-1383.30572262,0.00027372,2]
[404480803,1770192565928,-1383.30572262,0.00027372,2]
[404480804,1770192565949,-741.08018794,0.00027373,3]
[404480805,1770192565969,-5986.39,0.00027373,3]
[404480806,1770192565988,-2993.2,0.00027373,3]
[404480807,1770192566008,-1496.6,0.00027373,3]
[404480808,1770192566029,-748.3,0.00027373,3]
[404480809,1770192566050,-6223.89982472,0.00027373,2]
[404480810,1770192566070,-267.3679028,0.00027382,2]
[404480811,1770192566091,-807.30794303,0.00027383,2]
[404480812,1770192566110,-556.05640422,0.00027383,2]
[404480813,1770192566132,-300.0,0.00027384,30]
[404480814,1770192566155,-300.0,0.00027384,30]
[404480815,1770192566179,-300.0,0.00027384,30]
[404480816,1770192566202,-300.0,0.00027384,30]
[404480817,1770192566225,-300.0,0.00027384,30]
[404480818,1770192566248,-300.0,0.00027384,30]
[404480819,1770192566270,-300.0,0.00027384,30]
[404480820,1770192566295,-300.0,0.00027384,30]
[404480821,1770192566317,-300.0,0.00027384,30]
[404480822,1770192566337,-300.0,0.00027384,30]
[404480823,1770192566363,-300.0,0.00027384,30]
[404480824,1770192566385,-300.0,0.00027384,30]
[404480825,1770192566409,-300.0,0.00027384,30]
[404480826,1770192566429,-300.0,0.00027384,30]
[404480827,1770192566454,-300.0,0.00027384,30]
[404480828,1770192566476,-977.31560367,0.00027684,2]
[404480829,1770192566502,-151.0,0.00027784,7]
[404480830,1770192566523,-151.0,0.00027784,7]
[404480831,1770192566543,-151.0,0.00027784,7]
[404480832,1770192566563,-151.0,0.00027784,7]
[404480833,1770192566583,-151.0,0.00027784,7]
[404480834,1770192566602,-151.0,0.00027784,7]
[404480835,1770192566623,-151.0,0.00027784,7]
[404480836,1770192566644,-151.0,0.00027784,7]
[404480837,1770192566664,-151.0,0.00027784,7]
[404480838,1770192566684,-165.76,0.000278,7]
[404480839,1770192566705,-312.0,0.00028438,2]
[404480840,1770192566728,-374.14,0.00028733,3]
[404480841,1770192566747,-374.15,0.00028733,3]
[404480842,1770192566767,-11972.78,0.00028743,3]
[404480843,1770192566786,-5986.4,0.00028743,3]
[404480844,1770192566805,-2993.2,0.00028743,3]
[404480845,1770192566825,-1496.6,0.00028743,3]
[404480846,1770192566847,-532.91,0.000288,14]
[404480847,1770192566867,-407.0,0.00029028,2]
[404480848,1770192566892,-748.3,0.00030103,3]
[404480849,1770192566915,-339.0,0.00030438,2]
[404480850,1770192566935,-977.31560367,0.00030738,2]
[404480851,1770192566956,-366.0,0.00032438,2]
[404480852,1770192566976,-977.31560367,0.00033792,2]
[404480853,1770192567000,-393.0,0.00034438,120]
[404480854,1770192567020,-1343.9975048,0.00035237,2]
[404480855,1770192567040,-6223.89982472,0.00035606,3]
[404480856,1770192567061,-151.0,0.00035616,28]
[404480857,1770192567081,-151.0,0.00035616,28]
[404480858,1770192567101,-151.0,0.00035616,28]
[404480859,1770192567121,-151.0,0.00035616,28]
[404480860,1770192567140,-151.0,0.00035616,28]
[404480861,1770192567159,-267.782052,0.00035616,28]
[404480862,1770192567180,-151.0,0.00035616,31]
[404480863,1770192567200,-151.0,0.00035616,31]
[404480864,1770192567220,-151.0,0.00035616,31]
[404480865,1770192567240,-284.658522,0.00035616,31]
[404480866,1770192567259,-1540.322994,0.00035616,31]
[404480867,1770192567281,-1540.322994,0.00035616,31]
[404480868,1770192567303,-1540.322994,0.00035616,31]
[404480869,1770192567438,-1540.322994,0.00035616,31]
[404480870,1770192567462,-1540.322994,0.00035616,31]
[404480871,1770192567482,-1540.322994,0.00035616,31]
[404480872,1770192567504,-1540.322994,0.00035616,31]
[404480873,1770192567524,-1540.322994,0.00035616,31]
[404480874,1770192567545,-1540.322994,0.00035616,31]
[404480875,1770192567565,-1540.322994,0.00035616,31]
[404480876,1770192567588,-1540.322994,0.00035616,31]
[404480877,1770192567612,-1540.322994,0.00035616,31]
[404480878,1770192567634,-1540.322994,0.00035616,31]
[404480879,1770192567655,-1540.322994,0.00035616,31]
[404480880,1770192567675,-1540.322994,0.00035616,31]
[404480881,1770192567695,-1540.322994,0.00035616,31]
[404480882,1770192567714,-2163.963345,0.00035616,31]
[404480883,1770192567734,-284.441459,0.00035616,31]
[404480884,1770192567754,-2055.765178,0.00035616,31]
[404480885,1770192567772,-2055.765178,0.00035616,31]
[404480886,1770192567791,-2055.765178,0.00035616,31]
[404480887,1770192567810,-2055.765178,0.00035616,31]
[404480888,1770192567828,-2055.765178,0.00035616,31]
[404480889,1770192567848,-2055.765178,0.00035616,31]
[404480890,1770192567866,-2055.765178,0.00035616,31]
[404480891,1770192567886,-2055.765178,0.00035616,31]
[404480892,1770192567910,-2055.765178,0.00035616,31]
[404480893,1770192567930,-2055.765178,0.00035616,31]
[404480894,1770192567950,-2055.765178,0.00035616,31]
[404480895,1770192567973,-2055.765178,0.00035616,31]
[404480896,1770192567994,-2055.765178,0.00035616,31]
[404480897,1770192568015,-2055.765178,0.00035616,31]
[404480898,1770192568036,-2055.765178,0.00035616,31]
[404480899,1770192568058,-2055.765178,0.00035616,31]
[404480900,1770192568079,-2055.765178,0.00035616,31]
[404480901,1770192568099,-2055.765178,0.00035616,31]
[404480902,1770192568121,-2055.765178,0.00035616,31]
[404480903,1770192568141,-2055.765177,0.00035616,31]
[404480904,1770192568163,-420.0,0.00036438,120]
[404480905,1770192568182,-977.31560367,0.00036846,2]
[404480906,1770192568203,-2077.88,0.00038356,120]
[404480907,1770192568223,-447.0,0.00038438,120]
[404480908,1770192568243,-532.91,0.000385,30]
[404480909,1770192568264,-3066.2534156,0.00038507,2]
[404480910,1770192568284,-505.8883265,0.00038507,2]
[404480911,1770192568304,-1540.322994,0.00038507,120]
[404480912,1770192568323,-1540.322994,0.00038507,120]
[404480913,1770192568342,-1540.322994,0.00038507,120]
[404480914,1770192568361,-1540.323001,0.00038507,120]
[404480915,1770192568379,-100000.0,0.0003899,2]
[404480916,1770192568399,-741.08018794,0.00039143,2]
[404480917,1770192568420,-3111.94991236,0.00039203,3]
[404480918,1770192568439,-27974.15107437,0.00039213,2]
[404480919,1770192568459,-600.0,0.00039276,60]
[404480920,1770192568479,-160.918,0.00039394,54]
[404480921,1770192568499,-3883.2185198,0.00039525,2]
[404480922,1770192568522,-500.0,0.00039643,120]
[404480923,1770192568542,-407.3951105,0.0003974,2]
[404480924,1770192568562,-2000.0,0.00039748,20]
[404480925,1770192568582,-508.7978,0.00039748,12]
[404480926,1770192568602,-500.0,0.00039752,120]
[404480927,1770192568621,-977.31560367,0.000399,2]
[404480928,1770192568640,-165.76,0.000399,7]
[404480929,1770192568660,-6223.89982472,0.0003999,3]
[404480930,1770192568679,-741.08018794,0.0003999,3]
[404480931,1770192568698,-17548.21266449,0.0004,30]
[404480932,1770192574356,1692.32,0.00025,2]
[404480933,1770192576714,151.0,0.00039894,60]
[404480934,1770192577015,151.0,0.00039894,60]
[404480935,1770192577308,151.0,0.00039894,60]
[404480936,1770192577594,151.0,0.00039894,60]
[404480937,1770192577883,151.0,0.00039894,60]
[404480938,1770192578209,151.0,0.00039894,60]
[404480939,1770192578523,151.0,0.00039894,60]
[404480940,1770192578822,278.618451,0.00039894,60]
[404480975,1770192632703,-500.0,0.00027371,2]
[404480976,1770192632713,-204.9303591,0.00027371,2]
[404480977,1770192632724,-200.0,0.00027372,7]
[404480978,1770192632735,-200.0,0.00027372,7]
[404480979,1770192632746,-200.0,0.00027372,7]
[404480980,1770192632756,-200.0,0.00027372,7]
[404480981,1770192632766,-200.0,0.00027372,7]
[404480982,1770192632777,-200.0,0.00027372,7]
[404480983,1770192632787,-203.42721891,0.00027767,2]
[404480984,1770192632797,-300.0,0.00027918,30]
[404480985,1770192632808,-300.0,0.00027918,30]
[404480986,1770192632818,-300.0,0.00027918,30]
[404480987,1770192632829,-300.0,0.00027918,30]
[404480988,1770192632839,-300.0,0.00027918,30]
[404480989,1770192632850,-300.0,0.00027918,30]
[404480990,1770192632860,-300.0,0.00027918,30]
[404480991,1770192632871,-300.0,0.00027918,30]
[404480992,1770192632881,-300.0,0.00027918,30]
[404480993,1770192632891,-115.88861094,0.00027918,30]
[404480994,1770192632904,-184.11138906,0.00027918,30]
[404480995,1770192632915,-300.0,0.00027918,30]
[404480996,1770192632926,-300.0,0.00027918,30]
[404480997,1770192632936,-300.0,0.00027918,30]
[404480998,1770192632946,-300.0,0.00027918,30]
[404480999,1770192632957,-151.0,0.00039895,120]
[404481000,1770192632967,-3830.72334771,0.0004,30]
[404481005,1770192637770,160.322787,0.00039894,120]
[404481023,1770192640359,-3e-08,0.00027918,30]
[404481150,1770192646471,-299.99999997,0.00027918,30]
[404481152,1770192646481,-600.0,0.00028475,30]
[404481154,1770192646490,-720.0,0.00031323,30]
[404481156,1770192646499,-864.0,0.00034455,30]
[404481158,1770192646508,-993.79372964,0.00037901,30]
[404481175,1770192663820,500.79819029,0.00013699,2]
[404481176,1770192668567,170.73155875,0.00039894,120]
[404481177,1770192680149,371.5996004,0.00027371,120]
[404481178,1770192713146,151.0,0.00039894,120]
[404481179,1770192713441,151.0,0.00039894,120]
[404481180,1770192713735,151.0,0.00039894,120]
[404481182,1770192784008,338.8397926,0.00013699,2]
[404481183,1770192784152,348.51110734,0.00013699,2]
[404481185,1770192931346,501.01,0.00026848,120]
[404481186,1770192932586,200.0,0.00039888,20]
[404481188,1770192957029,200.0,0.00039888,30]
[404481189,1770192971941,200.0,0.00039888,90]
[404481190,1770192985439,-2736.12930495,0.00024603,2]
[404481191,1770192985467,-300.0,0.00024702,2]
[404481192,1770192985563,-5739.59229987,0.00024703,2]
[404481193,1770193007636,9786.91427859,0.00039888,20]
[404481194,1770193036591,500.0,0.00026848,120]
[404481195,1770193102537,-150.0,0.00024954,2]
[404481196,1770193102572,-3700.0,0.00024954,2]
[404481197,1770193260843,525.96123572,0.00027371,120]
[404481198,1770193267108,4866.8246631,0.00039888,40]
[404481200,1770193580937,3384.0,0.00030137,120]
[404481201,1770193604188,-150.0,0.00024335,2]
[404481202,1770193604212,-74.97075167,0.00025205,2]
[404481203,1770193639095,-9731.74518855,0.00025205,2]
[404481204,1770193639117,-150.0,0.00025205,2]
[404481205,1770193639141,-300.0,0.00025451,10]
[404481206,1770193639167,-500.0,0.00026845,2]
[404481207,1770193639190,-500.0,0.00026845,2]
[404481208,1770193639214,-500.0,0.00026845,2]
[404481209,1770193639238,-500.0,0.00026845,2]
[404481210,1770193639263,-545.50151776,0.00026845,2]
[404481211,1770193639287,-500.0,0.00026845,2]
[404481212,1770193639310,-154.29241761,0.00026845,2]
[404481213,1770193648452,-345.70758239,0.00026845,2]
[404481214,1770193648475,-500.0,0.00026845,2]
[404481215,1770193648497,-472.04271867,0.00026845,2]
[404481216,1770193660779,50000.0,0.00018,2]
[404481217,1770193700333,43465.31402302,0.00039884,120]
[404481218,1770193709947,-4500.0,0.00017,2]
[404481219,1770193745228,-216.42880265,0.00016,2]
[404481220,1770193745249,-43579.26782648,0.0001699,2]
[404481221,1770193747859,1327.0,0.00039884,30]
[404481222,1770193750209,500.55644104,0.00013273,2]
[404481223,1770193753702,500.0,0.00013273,2]
[404481224,1770193761067,500.93754052,0.00013273,2]
[404481225,1770193764083,-6443.12555675,0.0001699,2]
[404481226,1770193765110,-49977.60661677,0.0001699,2]
[404481227,1770193765133,-500.0,0.00016999,2]
[404481228,1770193765154,-500.0,0.00016999,2]
[404481229,1770193765176,-251.33453256,0.00016999,2]
[404481230,1770193765198,-500.0,0.00016999,2]
[404481231,1770193765221,-500.0,0.00016999,2]
[404481232,1770193765243,-500.0,0.00016999,2]
[404481233,1770193765266,-500.0,0.00016999,2]
[404481234,1770193765288,-500.0,0.00016999,2]
[404481235,1770193765311,-500.0,0.00016999,2]
[404481236,1770193765332,-500.0,0.00016999,2]
[404481237,1770193765354,-389.29938006,0.00016999,2]
[404481238,1770193765376,-500.0,0.00016999,2]
[404481239,1770193765398,-500.0,0.00016999,2]
[404481240,1770193765420,-500.0,0.00016999,2]
[404481241,1770193765441,-500.0,0.00016999,2]
[404481242,1770193765463,-500.0,0.00016999,2]
[404481243,1770193765484,-500.0,0.00016999,2]
[404481244,1770193765506,-179.71170497,0.00016999,2]
[404481245,1770193765528,-500.0,0.00016999,2]
[404481246,1770193765549,-500.0,0.00016999,2]
[404481247,1770193765570,-500.0,0.00016999,2]
[404481248,1770193765592,-346.64927311,0.00016999,2]
[404481249,1770193765613,-500.0,0.00016999,2]
[404481250,1770193765634,-500.0,0.00016999,2]
[404481251,1770193765654,-500.0,0.00016999,2]
[404481252,1770193765676,-500.0,0.00016999,2]
[404481253,1770193765699,-500.0,0.00016999,2]
[404481254,1770193765722,-500.0,0.00016999,2]
[404481255,1770193765744,-576.89558848,0.00016999,2]
[404481256,1770193765766,-500.0,0.00016999,2]
[404481257,1770193765787,-500.0,0.00016999,2]
[404481258,1770193765807,-500.0,0.00016999,2]
[404481259,1770193765827,-500.0,0.00016999,2]
[404481260,1770193765850,-500.0,0.00016999,2]
[404481261,1770193765873,-500.0,0.00016999,2]
[404481262,1770193765893,-500.0,0.00016999,2]
[404481263,1770193765913,-500.0,0.00016999,2]
[404481264,1770193765932,-21565.28750176,0.00017,2]
[404481265,1770193765951,-187.15753196,0.00017989,2]
[404481266,1770193765976,-35229.78862961,0.00018,2]
[404481267,1770193774149,-2055.9294933,0.00017747,2]
[404481268,1770193774171,-9731.58776035,0.00018,2]
[404481269,1770193804326,500.0,0.00013273,2]
[404481270,1770193804366,785.05828806,0.00014916,2]
[404481271,1770193804396,1000.0,0.00013821,2]
[404481272,1770193804452,1500.0,0.00014368,2]
[404481273,1770193807164,500.0,0.00013699,2]
[404481274,1770193807229,500.0,0.00014247,2]
[404481275,1770193811523,500.0,0.00013699,2]
[404481276,1770193811582,814.07051221,0.00014247,2]
[404481277,1770193813570,502.45202744,0.00013699,2]
[404481278,1770193814283,500.0,0.00013273,2]
[404481279,1770193814342,499.99,0.00013821,2]
[404481314,1770193832191,-3699.00411509,0.000179,2]
[404481316,1770193832200,-300.0,0.00017999,2]
[404481318,1770193832209,-6427.62436991,0.00018,2]
[404481331,1770193832322,-8038.56580198,0.00018,2]
[404481334,1770193832336,-1216.85445227,0.00018,2]
[404481359,1770193838812,-154.36659779,0.00017999,2]
[404481360,1770193838822,-482.96103035,0.00017999,2]
[404481361,1770193838832,-242.19018944,0.00017999,2]
[404481362,1770193838844,-564.09950983,0.00017999,2]
[404481363,1770193838853,-500.0,0.00017999,2]
[404481364,1770193838863,-12307.74857597,0.00018,2]
[404481377,1770193841714,-6225.61939043,0.00018,2]
[404481475,1770193877823,500.0,0.00013699,2]
[404481476,1770193877880,510.00194982,0.00014247,2]
[404481477,1770193881674,-164.73608546,0.00016438,2]
[404481478,1770193885352,1109.2982287,0.00017693,2]
[404481479,1770193895368,-3502.59187766,0.0002,20]
[404481480,1770193986746,500.0,0.00013699,2]
[404481481,1770193986775,506.2064172,0.00014247,2]
[404481482,1770194047607,501.19999009,0.00013273,2]
[404481483,1770194047862,500.0,0.00013273,2]
[404481484,1770194047923,1000.0,0.00013821,2]
[404481485,1770194047996,1087.64930692,0.00014368,2]
[404481486,1770194048150,502.97656979,0.00013273,2]
[404481487,1770194048277,500.0,0.00013273,2]
[404481488,1770194048329,669.32625074,0.00013821,2]
[404481489,1770194048805,501.149941,0.00013273,2]
[404481490,1770194106572,500.0,0.00013699,2]
[404481491,1770194106602,500.64282011,0.00014247,2]
[404481492,1770194106937,501.09816142,0.00013699,2]
[404481493,1770194107123,500.0,0.00013699,2]
[404481494,1770194107154,800.241312,0.00014247,2]
[404481495,1770194107180,199.758688,0.00014247,2]
[404481496,1770194111990,-485.40296749,0.00014795,2]
[404481497,1770194115496,-500.0,0.00014647,2]
[404481498,1770194118246,-514.5990876,0.00014647,2]
[404481499,1770194122215,-500.0,0.00014647,2]
[404481500,1770194126746,-500.0,0.00014647,2]
[404481501,1770194128997,-353.34966211,0.00014647,2]
[404481502,1770194131845,-321.94818412,0.00014647,2]
[404481503,1770194131868,-178.05181588,0.00014795,2]
[404481504,1770194133406,181.0,0.00025973,120]
[404481505,1770194134859,-555.98186492,0.00014795,2]
[404481506,1770194135102,181.0,0.00027271,120]
[404481507,1770194138671,-280.56335171,0.00014795,2]
[404481508,1770194138695,-171.86386996,0.00015342,2]
[404481509,1770194143386,-190.01813508,0.00015342,2]
[404481510,1770194146833,-194.22311622,0.00015342,2]
[404481511,1770194227337,507.09333172,0.00013273,2]
[404481512,1770194306443,-500.0,0.00015037,2]
[404481513,1770194310484,-185.0,0.00015037,2]